bitfinex/quotes_ETHUSD_20250323
["timestamp","ask_amount","ask_price","bid_price","bid_amount"]
[1742744734807,4.97784,2008.9,2008.8,26.315]
[1742744735008,4.97784,2008.9,2008.8,30.997]
[1742744736144,5.76884,2008.9,2008.8,30.997]
[1742744740046,7.34122,2008.9,2008.8,26.315]
[1742744741857,5.76884,2008.9,2008.8,26.315]
[1742744753353,0.7908,2008.8,2008.4,4.682]
[1742744753552,4.97883,2008.5,2008.4,4.682]
[1742744753740,4.97883,2008.5,2008.4,7.61479751]
[1742744756452,4.97869,2008.6,2008.4,7.61479751]
[1742744756658,4.97817,2008.8,2008.5,0.76147975]
[1742744756861,4.97817,2008.8,2008.7,2.93279751]
[1742744757924,4.97794,2008.9,2008.7,2.93279751]
[1742744758245,4.97794,2008.9,2008.8,4.682]
[1742744760050,4.97794,2008.9,2008.8,31.001]
[1742744765845,6.551644,2008.9,2008.8,26.319]
[1742744766050,7.355344,2008.9,2008.8,31.0]
[1742744766266,4.97956,2008.3,2008.2,2.93279751]
[1742744766453,4.97956,2008.3,2008.2,29.25079751]
[1742744767452,4.97956,2008.3,2008.2,33.93179751]
[1742744767639,4.97888,2008.5,2008.2,33.93179751]
[1742744767846,0.8037,2009.0,2008.4,2.93279751]
[1742744768076,6.51491588,2009.2,2008.2,30.999]
[1742744768077,7.97758,2009.1,2008.9,2.93279751]
[1742744768238,4.9776,2009.0,2008.9,7.61379751]
[1742744768772,4.9776,2009.0,2008.9,8.37517726]
[1742744772878,9.95514,2009.1,2008.9,8.37517726]
[1742744773078,4.97756,2009.1,2009.0,26.317]
[1742744773386,4.97707,2009.3,2009.0,26.317]
[1742744773387,4.97702,2009.3,2009.0,26.317]
[1742744773562,4.97702,2009.3,2009.2,2.93279751]
[1742744775655,4.97702,2009.3,2009.2,3.59313462]
[1742744776983,5.77951,2009.8,2009.2,3.59313462]
[1742744776984,4.97643,2009.5,2009.2,3.59313462]
[1742744777166,4.97643,2009.5,2009.4,2.93279751]
[1742744777751,4.9766,2009.4,2009.3,4.681]
[1742744780086,4.97601,2009.7,2009.3,4.681]
[1742744780288,9.95133,2009.8,2009.6,2.93279751]
[1742744780479,4.97543,2009.9,2009.7,7.61279751]
[1742744780788,4.97543,2009.9,2009.8,26.314]
[1742744784262,4.9753,2010.0,2009.8,26.314]
[1742744784461,4.97529,2010.0,2009.9,2.93279751]
[1742744787093,4.97496,2010.1,2009.9,2.93279751]
[1742744787271,4.97512,2010.0,2009.9,2.93279751]
[1742744789694,9.94999,2010.1,2009.9,2.93279751]
[1742744790198,4.97512,2010.0,2009.9,2.93279751]
[1742744795598,4.97537,2009.9,2009.8,26.314]
[1742744795898,4.97512,2010.0,2009.8,29.24679751]
[1742744796375,4.97512,2010.0,2009.8,29.90713462]
[1742744796974,4.9749,2010.1,2009.8,34.88273462]
[1742744797605,4.9749,2010.1,2009.8,29.90713462]
[1742744797983,9.94999,2010.1,2009.8,29.90713462]
[1742744800307,4.97513,2010.0,2009.8,29.90713462]
[1742744800485,4.97513,2010.0,2009.9,0.76137975]
[1742744800680,4.97469,2010.2,2009.9,0.76137975]
[1742744800905,4.97495,2010.1,2010.0,2.93279751]
[1742744801404,4.97495,2010.1,2010.0,29.23479751]
[1742744807421,4.97495,2010.1,2010.0,26.302]
[1742744809684,4.97495,2010.1,2010.0,26.96233711]
[1742744813816,4.97495,2010.1,2010.0,26.302]
[1742744815612,5.78095,2010.1,2010.0,26.302]
[1742744815784,5.78095,2010.1,2010.0,30.979]
[1742744816185,5.78095,2010.1,2010.0,26.302]
[1742744816508,5.78095,2010.1,2010.0,30.979]
[1742744816911,7.64726575,2010.1,2010.0,26.302]
[1742744817083,10.58006326,2010.1,2010.0,26.302]
[1742744817284,13.58006326,2010.1,2010.0,26.302]
[1742744817486,13.58006326,2010.1,2009.8,4.677]
[1742744817487,5.78137,2009.9,2009.8,4.677]
[1742744818722,5.78161,2009.8,2009.7,26.301]
[1742744819015,5.78161,2009.8,2009.7,30.978]
[1742744819994,0.806,2009.5,2009.0,2.93279751]
[1742744820186,4.97712,2009.2,2009.1,30.979]
[1742744820804,4.97712,2009.2,2009.1,26.302]
[1742744821005,4.97712,2009.2,2009.1,30.979]
[1742744822293,4.97661,2009.4,2009.1,38.88910751]
[1742744822492,9.95342,2009.4,2009.1,33.91179751]
[1742744822905,4.97688,2009.3,2009.1,33.91179751]
[1742744823104,4.97668,2009.4,2009.1,33.91179751]
[1742744823424,4.97668,2009.4,2009.3,2.93279751]
[1742744824809,4.97643,2009.5,2009.3,2.93279751]
[1742744824988,9.95297,2009.5,2009.3,2.93279751]
[1742744825192,0.806,2009.7,2009.1,35.95632]
[1742744825193,5.75312,2009.4,2009.1,26.302]
[1742744825394,5.75312,2009.4,2009.2,4.678]
[1742744825395,4.97688,2009.3,2009.2,4.678]
[1742744826703,5.75338,2009.3,2009.2,4.678]
[1742744828801,4.97688,2009.3,2009.2,4.678]
[1742744828992,4.97688,2009.3,2009.2,7.61079751]
[1742744829194,4.97688,2009.3,2009.2,4.678]
[1742744831126,5.75289,2009.5,2009.2,7.61079751]
[1742744831335,4.97611,2009.6,2009.2,12.58776751]
[1742744831630,4.97611,2009.6,2009.4,2.93279751]
[1742744832495,4.97653,2009.5,2009.4,2.93279751]
[1742744832902,4.97653,2009.5,2009.2,7.61079751]
[1742744833630,9.95305,2009.5,2009.2,7.61079751]
[1742744834554,4.97663,2009.4,2009.2,7.61079751]
[1742744834846,4.97685,2009.3,2009.2,7.61079751]
[1742744835849,4.97685,2009.3,2009.1,26.302]
[1742744835850,4.9771,2009.2,2009.1,26.302]
[1742744836032,4.9771,2009.2,2009.1,30.98]
[1742744838646,5.8089,2009.2,2009.1,26.302]
[1742744838946,5.8089,2009.2,2009.1,30.98]
[1742744845039,5.8089,2009.2,2009.1,26.302]
[1742744845341,10.61121626,2009.2,2009.1,26.302]
[1742744846621,7.67841875,2009.2,2009.1,26.302]
[1742744847024,5.8089,2009.2,2009.1,26.302]
[1742744849141,4.9771,2009.2,2009.1,26.302]
[1742744849909,5.80865,2009.3,2009.1,26.302]
[1742744849910,4.97685,2009.3,2009.1,26.302]
[1742744850835,4.97635,2009.6,2009.2,2.93279751]
[1742744851045,4.9764,2009.5,2009.4,2.93279751]
[1742744851240,9.95232,2009.6,2009.4,8.40277926]
[1742744851447,4.97636,2009.5,2009.4,8.40277926]
[1742744851738,4.97636,2009.5,2009.4,5.46998175]
[1742744851913,5.80816,2009.5,2009.4,4.679]
[1742744853834,4.9771,2009.2,2009.1,26.302]
[1742744854036,4.9771,2009.2,2009.1,30.98]
[1742744856439,4.97735,2009.1,2009.0,2.92429751]
[1742744856738,4.97735,2009.1,2009.0,29.23629751]
[1742744857643,4.97735,2009.1,2009.0,33.91429751]
[1742744858250,4.9771,2009.2,2009.0,33.91429751]
[1742744858653,4.97695,2009.3,2009.0,33.91429751]
[1742744858851,4.97643,2009.5,2009.2,2.93279751]
[1742744859149,4.97588,2009.7,2009.4,7.90939751]
[1742744859349,4.97547,2009.9,2009.6,2.93279751]
[1742744859523,4.97514,2010.0,2009.8,2.93279751]
[1742744859719,4.97514,2010.0,2009.9,30.99]
[1742744864549,5.77224,2010.0,2009.9,30.99]
[1742744864853,7.344418,2010.0,2009.9,26.312]
[1742744865202,7.344418,2010.0,2009.9,30.99]
[1742744868074,9.95401,2009.3,2009.1,2.93279751]
[1742744868378,9.95401,2009.3,2009.2,30.983]
[1742744869144,9.95401,2009.3,2009.2,26.306]
[1742744869345,9.95401,2009.3,2009.2,30.983]
[1742744869985,9.95401,2009.3,2009.2,26.306]
[1742744870166,11.447051,2009.3,2009.2,30.983]
[1742744870748,12.219551,2009.3,2009.2,30.983]
[1742744871379,10.72651,2009.3,2009.2,30.983]
[1742744880562,10.72651,2009.3,2009.2,26.306]
[1742744890990,4.9771,2009.2,2009.1,4.678]
[1742744892102,4.97811,2008.8,2008.6,2.93279751]
[1742744892432,4.97811,2008.8,2008.7,30.991]
[1742744892705,4.97834,2008.7,2008.6,2.93279751]
[1742744892903,4.97816,2008.8,2008.6,33.92379751]
[1742744894207,9.95644,2008.8,2008.6,29.24579751]
[1742744894388,4.97816,2008.8,2008.7,4.678]
[1742744896523,4.97834,2008.7,2008.6,26.313]
[1742744896725,4.97834,2008.7,2008.6,30.991]
[1742744897693,4.97834,2008.7,2008.6,26.313]
[1742744897894,6.547494,2008.7,2008.6,30.991]
[1742744898289,4.97939,2008.3,2008.1,2.93279751]
[1742744898696,4.97939,2008.3,2008.2,30.992]
[1742744899010,4.97911,2008.4,2008.2,30.992]
[1742744899216,4.97933,2008.3,2008.2,26.314]
[1742744899379,4.97933,2008.3,2008.2,30.992]
[1742744901922,9.95838,2008.4,2008.2,30.992]
[1742744902146,9.95838,2008.4,2008.3,2.93279751]
[1742744902650,4.97966,2008.2,2008.1,2.93279751]
[1742744902941,4.97966,2008.2,2008.1,33.92879751]
[1742744905200,4.97934,2008.3,2008.1,33.92879751]
[1742744905524,9.95884,2008.3,2008.2,4.679]
[1742744906426,9.95884,2008.3,2008.1,29.24979751]
[1742744906624,4.97934,2008.3,2008.2,4.679]
[1742744909835,4.97911,2008.4,2008.2,4.679]
[1742744910040,4.97899,2008.5,2008.3,2.93279751]
[1742744910199,4.97908,2008.4,2008.3,2.93279751]
[1742744910931,4.97899,2008.5,2008.3,2.93279751]
[1742744912334,4.97838,2008.7,2008.3,7.91206751]
[1742744912634,4.97818,2008.8,2008.5,2.93279751]
[1742744912800,4.97837,2008.7,2008.6,4.679]
[1742744914200,4.97774,2009.0,2008.6,9.65746]
[1742744914422,4.97696,2009.3,2008.9,2.93279751]
[1742744914627,4.9771,2009.2,2009.1,2.93279751]
[1742744916629,9.95442,2009.2,2009.0,31.0]
[1742744916817,4.97735,2009.1,2009.0,31.0]
[1742744917017,9.95447,2009.2,2009.0,31.0]
[1742744917637,4.97718,2009.2,2009.0,31.0]
[1742744918833,4.97687,2009.3,2009.0,31.0]
[1742744919038,4.97687,2009.3,2009.1,2.93279751]
[1742744920728,4.9771,2009.2,2009.0,31.0]
[1742744920928,4.97735,2009.1,2009.0,31.0]
[1742744923228,4.97735,2009.1,2009.0,30.999]
[1742744923733,4.97735,2009.1,2009.0,26.321]
[1742744923931,6.553093,2009.1,2009.0,30.999]
[1742744924640,6.553093,2009.1,2009.0,26.321]
[1742744924944,10.379193,2009.1,2009.0,26.321]
[1742744925935,4.97908,2008.4,2008.3,2.93279751]
[1742744926145,4.97908,2008.4,2008.3,33.92479751]
[1742744927107,4.97885,2008.5,2008.3,33.92479751]
[1742744927311,4.97866,2008.6,2008.3,33.92479751]
[1742744927511,4.97866,2008.6,2008.5,2.93279751]
[1742744928121,9.95747,2008.6,2008.5,2.93279751]
[1742744929142,4.97866,2008.6,2008.5,2.93279751]
[1742744932302,4.97866,2008.6,2008.5,7.61079751]
[1742744933012,4.97866,2008.6,2008.5,4.678]
[1742744933215,4.97866,2008.6,2008.5,7.61079751]
[1742744934272,4.97835,2008.7,2008.5,7.61079751]
[1742744934545,0.8176,2009.1,2008.5,7.61079751]
[1742744934785,4.97718,2009.2,2008.9,2.93279751]
[1742744934944,4.97738,2009.1,2009.0,4.678]
[1742744935145,4.97738,2009.1,2009.0,30.995]
[1742744936326,0.8176,2009.6,2009.0,30.995]
[1742744936545,4.97641,2009.5,2009.2,2.93279751]
[1742744936739,0.8176,2009.6,2009.2,2.93279751]
[1742744937049,4.97685,2009.3,2009.2,2.93279751]
[1742744938751,4.97685,2009.3,2009.0,30.995]
[1742744938958,4.97717,2009.2,2009.0,33.92779751]
[1742744939326,9.95448,2009.2,2009.0,33.92779751]
[1742744939935,4.97717,2009.2,2009.0,33.92779751]
[1742744940437,4.97692,2009.3,2009.0,33.92779751]
[1742744940633,4.97692,2009.3,2009.2,2.93279751]
[1742744941527,9.954,2009.3,2009.0,33.92779751]
[1742744941726,4.97719,2009.2,2009.0,33.92779751]
[1742744941927,4.97692,2009.3,2009.0,33.92779751]
[1742744942248,4.97619,2009.6,2009.2,2.93279751]
[1742744942736,4.97616,2009.6,2009.2,2.93279751]
[1742744943053,4.97636,2009.5,2009.4,2.93279751]
[1742744943255,4.97636,2009.5,2009.4,7.60979751]
[1742744943462,4.97636,2009.5,2009.4,8.37077726]
[1742744944864,4.97636,2009.5,2009.4,5.43797975]
[1742744945026,4.97636,2009.5,2009.4,4.677]
[1742744945859,9.95245,2009.6,2009.4,4.677]
[1742744946070,4.97616,2009.6,2009.4,7.60979751]
[1742744947063,4.97636,2009.5,2009.4,4.677]
[1742744948369,4.97685,2009.3,2009.2,2.93279751]
[1742744948566,4.97685,2009.3,2009.2,7.60979751]
[1742744950235,4.97685,2009.3,2009.2,26.31]
[1742744950435,4.97685,2009.3,2009.2,30.987]
[1742744950668,4.97685,2009.3,2009.2,26.31]
[1742744950852,4.97685,2009.3,2009.2,30.987]
[1742744951070,4.97685,2009.3,2009.2,33.91979751]
[1742744952068,9.95349,2009.4,2009.2,33.91979751]
[1742744952965,4.97685,2009.3,2009.2,33.91979751]
[1742744954476,4.97672,2009.4,2009.2,33.91979751]
[1742744954674,4.97615,2009.6,2009.2,33.91979751]
[1742744954966,4.97516,2010.0,2009.2,33.91979751]
[1742744954967,5.77766,2010.0,2009.6,4.97589]
[1742744955139,5.77766,2010.0,2009.8,2.93279751]
[1742744955140,4.97536,2010.0,2009.8,2.93279751]
[1742744955637,4.97537,2009.9,2009.8,2.93279751]
[1742744956837,4.97561,2009.8,2009.7,4.677]
[1742744957486,4.97628,2009.6,2009.4,2.93279751]
[1742744957665,4.97628,2009.6,2009.5,4.677]
[1742744959857,4.97628,2009.6,2009.5,30.984]
[1742744963602,4.97596,2009.7,2009.5,30.984]
[1742744963894,4.97543,2009.9,2009.6,2.93279751]
[1742744964196,4.97543,2009.9,2009.8,2.93279751]
[1742744966802,4.97573,2009.8,2009.6,2.93279751]
[1742744968773,4.97611,2009.6,2009.5,26.307]
[1742744968967,4.97611,2009.6,2009.5,30.983]
[1742744970812,0.8106,2010.1,2009.5,30.983]
[1742744970985,4.97581,2009.8,2009.6,2.93279751]
[1742744971175,4.97575,2009.8,2009.6,2.93279751]
[1742744971785,9.95153,2009.8,2009.6,2.93279751]
[1742744972380,4.97586,2009.7,2009.6,2.93279751]
[1742744972783,4.97545,2009.9,2009.6,2.93279751]
[1742744973323,4.97545,2009.9,2009.6,7.90885751]
[1742744973488,4.97519,2010.0,2009.8,2.93279751]
[1742744973688,4.97519,2010.0,2009.9,4.691]
[1742744974308,4.97519,2010.0,2009.9,30.995]
[1742744974473,0.8201,2010.8,2009.9,30.995]
[1742744974679,4.97428,2010.4,2010.3,2.93279751]
[1742744974914,4.97428,2010.4,2010.3,7.63179751]
[1742744975801,5.79438,2010.4,2010.3,7.63179751]
[1742744980604,4.97428,2010.4,2010.3,7.63179751]
[1742744983010,4.9734,2010.7,2010.3,7.63179751]
[1742744983212,4.97321,2010.8,2010.6,2.93279751]
[1742744983538,4.97339,2010.7,2010.6,2.93279751]
[1742744983684,4.97339,2010.7,2010.6,33.92579751]
[1742744984190,4.97339,2010.7,2010.6,30.993]
[1742744987487,4.97339,2010.7,2010.6,34.58433462]
[1742744987887,4.97331,2010.8,2010.6,34.58433462]
[1742744988288,9.94666,2010.8,2010.6,34.58433462]
[1742744988818,4.97339,2010.7,2010.6,34.58433462]
[1742744989595,4.97339,2010.7,2010.6,33.92579751]
[1742744989823,4.97339,2010.7,2010.6,30.993]
[1742745000393,5.80649,2010.7,2010.6,30.993]
[1742745000592,5.80649,2010.7,2010.6,26.299]
[1742745000792,5.80649,2010.7,2010.6,30.973]
[1742745006533,7.381794,2010.7,2010.6,30.973]
[1742745007518,7.381794,2010.7,2010.6,26.299]
[1742745007727,7.305694,2010.7,2010.6,26.299]
[1742745010612,7.305694,2010.7,2009.8,9.37050247]
[1742745010613,4.97521,2010.0,2009.8,3.0]
[1742745010922,4.97521,2010.0,2009.9,30.968]
[1742745011126,5.73221,2010.0,2009.9,26.294]
[1742745011438,5.73221,2010.0,2009.9,30.968]
[1742745012523,5.73221,2010.0,2009.9,26.294]
[1742745012727,7.59367175,2010.0,2009.9,30.968]
[1742745017461,5.73221,2010.0,2009.9,30.968]
[1742745019256,4.97521,2010.0,2009.9,30.968]
[1742745019938,4.97521,2010.0,2009.9,26.294]
[1742745029251,4.97537,2009.9,2009.8,4.676]
[1742745029420,4.97537,2009.9,2009.8,30.979]
[1742745031352,4.97537,2009.9,2009.8,31.2146336]
[1742745032215,4.97537,2009.9,2009.8,34.14743111]
[1742745033740,4.97537,2009.9,2009.8,31.2146336]
[1742745034428,5.79477,2009.9,2009.8,31.2296336]
[1742745035247,4.97537,2009.9,2009.8,31.2296336]
[1742745040144,5.79477,2009.9,2009.8,31.2296336]
[1742745040349,7.369255,2009.9,2009.8,31.2296336]
[1742745041538,6.549855,2009.9,2009.8,31.2296336]
[1742745051742,6.549855,2009.9,2009.8,26.5386336]
[1742745051743,7.305155,2009.9,2009.8,26.5386336]
[1742745052051,4.97636,2009.5,2009.4,30.981]
[1742745054267,4.97636,2009.5,2009.4,31.17683256]
[1742745054871,4.97636,2009.5,2009.4,26.50083256]
[1742745055074,4.97636,2009.5,2009.4,31.17983256]
[1742745055371,4.97621,2009.6,2009.4,34.11263007]
[1742745055669,4.97596,2009.7,2009.4,34.11263007]
[1742745055874,4.97596,2009.7,2009.6,2.93279751]
[1742745056242,4.97596,2009.7,2009.6,3.12837066]
[1742745058175,4.97596,2009.7,2009.6,0.19557315]
[1742745058364,4.97611,2009.6,2009.4,33.91679751]
[1742745058565,4.97611,2009.6,2009.5,0.19579826]
[1742745061876,4.97611,2009.6,2009.5,4.87179826]
[1742745062682,4.97611,2009.6,2009.5,0.19579826]
[1742745062866,4.97611,2009.6,2009.5,4.87479826]
[1742745082894,4.97611,2009.6,2009.5,31.18279826]
[1742745093524,7.338809,2009.6,2009.5,31.18279826]
[1742745094481,7.338809,2009.6,2009.5,26.50379826]
[1742745095012,9.09929996,2009.6,2009.5,26.50379826]
[1742745095207,7.338809,2009.6,2009.5,26.50379826]
[1742745097080,6.544409,2009.6,2009.5,26.50379826]
[1742745098486,7.338809,2009.6,2009.5,26.50379826]
[1742745104921,10.338809,2009.6,2009.5,26.50379826]
[1742745106929,10.338809,2009.6,2009.5,0.19579826]
[1742745107222,4.9766,2009.4,2009.3,4.676]
[1742745107594,4.9766,2009.4,2009.3,4.67699791]
[1742745114232,4.9766,2009.4,2009.3,4.85825155]
[1742745117610,4.9766,2009.4,2009.3,31.16825155]
[1742745118954,0.8078,2009.9,2009.3,32.92813337]
[1742745119160,4.97613,2009.6,2009.5,1.75988182]
[1742745119438,0.8078,2009.9,2009.5,1.75988182]
[1742745119439,4.97596,2009.7,2009.5,1.75988182]
[1742745119730,4.97611,2009.6,2009.5,1.75988182]
[1742745120315,4.97562,2009.8,2009.5,1.75988182]
[1742745120316,4.97565,2009.8,2009.5,1.75988182]
[1742745120656,4.97586,2009.7,2009.6,1.75988182]
[1742745120804,4.97586,2009.7,2009.6,6.43588182]
[1742745127517,0.8078,2010.1,2009.7,4.9758]
[1742745127731,0.8078,2010.1,2009.7,0.04975215]
[1742745127732,4.97487,2010.1,2009.7,0.04975215]
[1742745127924,4.97512,2010.0,2009.8,1.75988182]
[1742745128437,4.97512,2010.0,2009.9,1.75988182]
[1742745128742,4.97551,2009.9,2009.8,1.75988182]
[1742745129234,4.97512,2010.0,2009.8,1.93994077]
[1742745129435,4.97502,2010.1,2009.9,1.75988182]
[1742745129649,9.95008,2010.1,2010.0,6.61408007]
[1742745129815,9.95008,2010.1,2010.0,4.85419825]
[1742745131640,9.95008,2010.1,2010.0,4.675]
[1742745132930,4.97467,2010.2,2010.0,6.43488182]
[1742745133112,9.94946,2010.2,2010.1,28.06388182]
[1742745133313,4.97467,2010.2,2010.1,28.2415862]
[1742745134120,5.95906414,2010.4,2010.1,28.2415862]
[1742745134324,10.93337414,2010.4,2010.3,1.75988182]
[1742745134724,10.93337414,2010.4,2010.3,1.9355418]
[1742745134925,10.93337414,2010.4,2010.3,0.17565998]
[1742745135409,9.9485,2010.4,2010.3,0.17565998]
[1742745135620,4.97419,2010.4,2010.3,0.17565998]
[1742745135830,4.97365,2010.6,2010.3,0.17565998]
[1742745136113,4.97365,2010.6,2010.5,2.93048129]
[1742745136535,4.97365,2010.6,2010.5,3.105281]
[1742745137143,5.95546998,2010.6,2010.5,3.105281]
[1742745139443,5.95546998,2010.6,2010.5,0.17479971]
[1742745141324,5.95546998,2010.6,2010.5,0.95282781]
[1742745145846,5.95546998,2010.6,2010.5,0.17479971]
[1742745146217,4.97388,2010.5,2010.4,4.673]
[1742745151565,4.97462,2010.2,2010.1,29.23448129]
[1742745151858,4.97462,2010.2,2010.1,33.90748129]
[1742745154936,4.97462,2010.2,2010.1,30.977]
[1742745155477,4.97462,2010.2,2010.1,26.304]
[1742745155774,4.97462,2010.2,2010.1,30.977]
[1742745156405,4.97462,2010.2,2010.1,33.90748129]
[1742745158291,4.97462,2010.2,2010.1,35.32919815]
[1742745158481,4.97462,2010.2,2010.1,33.90748129]
[1742745159084,4.97462,2010.2,2010.1,34.06798983]
[1742745160883,4.97441,2010.3,2010.1,34.06798983]
[1742745161593,4.97416,2010.4,2010.1,39.04281983]
[1742745161958,9.94845,2010.4,2010.1,39.04281983]
[1742745162457,4.97446,2010.3,2010.1,34.06798983]
[1742745167291,9.949,2010.3,2010.1,34.06798983]
[1742745170978,4.97446,2010.3,2010.2,1.75851633]
[1742745171177,4.97446,2010.3,2010.2,1.91909412]
[1742745175606,4.97446,2010.3,2010.2,0.16057779]
[1742745176102,4.97462,2010.2,2010.1,32.73551633]
[1742745176503,4.97462,2010.2,2010.1,31.13752845]
[1742745177494,4.97462,2010.2,2010.1,32.89604478]
[1742745177697,4.97446,2010.3,2010.1,32.89604478]
[1742745177995,4.97446,2010.3,2010.2,1.75851633]
[1742745178186,4.97446,2010.3,2010.2,1.91861454]
[1742745182708,4.97438,2010.3,2010.2,1.91861454]
[1742745184913,4.97438,2010.3,2010.2,0.16009821]
[1742745185211,9.94892,2010.3,2010.1,32.73551633]
[1742745185412,4.97462,2010.2,2010.1,30.977]
[1742745186188,4.97462,2010.2,2010.1,32.73551633]
[1742745189211,4.97462,2010.2,2010.1,32.89582395]
[1742745189825,4.97462,2010.2,2010.1,26.46430762]
[1742745190132,5.75522,2010.2,2010.1,31.13630762]
[1742745190286,4.97462,2010.2,2010.1,32.89482395]
[1742745191188,4.97462,2010.2,2010.1,28.22282395]
[1742745191389,4.97462,2010.2,2010.1,32.89482395]
[1742745194018,4.97438,2010.3,2010.1,32.89482395]
[1742745194415,4.97438,2010.3,2010.2,1.75851633]
[1742745194615,4.97438,2010.3,2010.2,1.9183937]
[1742745196055,4.97438,2010.3,2010.2,28.2163937]
[1742745197565,4.97438,2010.3,2010.2,26.45787737]
[1742745199266,4.97435,2010.4,2010.2,28.2163937]
[1742745200070,9.9487,2010.4,2010.2,28.2163937]
[1742745200364,4.97438,2010.3,2010.2,28.2163937]
[1742745201372,5.95545998,2010.6,2010.2,28.2163937]
[1742745201610,5.95545998,2010.6,2010.5,1.75851633]
[1742745201897,0.98181998,2010.6,2010.5,6.58926195]
[1742745202056,0.98181998,2010.6,2010.5,6.63899455]
[1742745202265,0.7594,2010.9,2010.5,6.63899455]
[1742745202266,5.73243,2010.9,2010.5,11.61287455]
[1742745202501,4.97303,2010.9,2010.8,1.75851633]
[1742745202727,4.97303,2010.9,2010.7,1.75851633]
[1742745202906,4.97303,2010.9,2010.8,1.91549238]
[1742745205600,5.73243,2010.9,2010.8,0.15697605]
[1742745205801,5.73243,2010.9,2010.8,4.672]
[1742745205976,5.73243,2010.9,2010.8,4.82829542]
[1742745206298,7.47604263,2010.9,2010.8,4.82829542]
[1742745208380,4.97303,2010.9,2010.8,4.82829542]
[1742745208585,5.73243,2010.9,2010.8,4.82829542]
[1742745210311,4.97303,2010.9,2010.8,4.82829542]
[1742745212407,4.97275,2011.0,2010.8,7.75824719]
[1742745212607,4.97275,2011.0,2010.8,9.17996405]
[1742745212814,4.97289,2010.9,2010.8,7.75824719]
[1742745214703,4.97289,2010.9,2010.8,4.82729542]
[1742745226922,4.97289,2010.9,2010.8,0.15629542]
[1742745227136,4.97289,2010.9,2010.8,4.82629542]
[1742745229921,5.79099,2010.9,2010.8,4.82629542]
[1742745230525,5.79099,2010.9,2010.8,31.11629542]
[1742745236129,4.97289,2010.9,2010.8,32.87383613]
[1742745236710,4.97289,2010.9,2010.8,31.11629542]
[1742745241235,5.79099,2010.9,2010.8,26.44629542]
[1742745241405,5.79099,2010.9,2010.8,31.11629542]
[1742745242232,4.97289,2010.9,2010.8,31.11629542]
[1742745242933,4.97274,2011.0,2010.8,31.11629542]
[1742745243525,9.94553,2011.0,2010.8,31.11629542]
[1742745243725,4.97274,2011.0,2010.8,31.11629542]
[1742745244238,9.94555,2011.0,2010.8,31.11629542]
[1742745244440,4.97274,2011.0,2010.8,31.11629542]
[1742745245909,4.97289,2010.9,2010.8,31.11629542]
[1742745246637,4.97289,2010.9,2010.8,26.44629542]
[1742745246843,4.97289,2010.9,2010.8,31.11629542]
[1742745248509,4.97289,2010.9,2010.8,26.44629542]
[1742745248835,4.97289,2010.9,2010.8,31.11529542]
[1742745249042,7.352143,2010.9,2010.8,26.44629542]
[1742745249246,7.352143,2010.9,2010.8,31.11529542]
[1742745250138,7.352143,2010.9,2010.8,26.44629542]
[1742745251945,5.78209,2010.9,2010.8,26.44629542]
[1742745257330,8.71114908,2010.9,2010.8,26.44629542]
[1742745264858,7.54050245,2010.9,2010.8,26.44629542]
[1742745265557,7.54050245,2010.9,2010.0,1.75841245]
[1742745265558,4.97462,2010.2,2010.0,1.75841245]
[1742745265733,7.55544245,2010.4,2010.3,26.293]
[1742745265927,4.97462,2010.2,2010.1,30.963]
[1742745266127,4.97462,2010.2,2010.1,26.293]
[1742745266326,4.97462,2010.2,2010.1,30.963]
[1742745267126,6.73303245,2010.2,2010.1,26.293]
[1742745267327,9.30638669,2010.2,2010.1,26.293]
[1742745267528,12.30638669,2010.2,2010.1,26.293]
[1742745268842,13.48071836,2010.2,2010.1,26.293]
[1742745269354,14.48406617,2010.2,2010.1,26.293]
[1742745270254,5.73662,2010.0,2009.7,26.297]
[1742745270470,4.97561,2009.8,2009.7,30.967]
[1742745271867,7.90835412,2009.8,2009.7,26.297]
[1742745273262,7.90835412,2009.8,2009.7,26.42165876]
[1742745275367,4.9752,2010.0,2009.7,26.42165876]
[1742745275672,4.97538,2009.9,2009.7,26.42165876]
[1742745277082,9.95094,2009.9,2009.7,26.42165876]
[1742745277380,4.97538,2009.9,2009.7,26.42165876]
[1742745280389,9.95046,2010.0,2009.7,26.42165876]
[1742745280753,4.97541,2009.9,2009.7,26.42165876]
[1742745281857,9.95101,2009.9,2009.7,26.42165876]
[1742745282888,4.97541,2009.9,2009.7,26.42165876]
[1742745283954,4.97561,2009.8,2009.7,26.42165876]
[1742745286183,9.95088,2009.9,2009.7,26.42165876]
[1742745286486,4.97541,2009.9,2009.7,26.42165876]
[1742745287589,9.95095,2009.9,2009.7,26.42165876]
[1742745287758,4.97541,2009.9,2009.7,26.42165876]
[1742745288082,9.95098,2009.9,2009.7,26.42165876]
[1742745288385,4.97561,2009.8,2009.7,26.42165876]
[1742745289291,4.97541,2009.9,2009.7,26.42165876]
[1742745289480,4.97541,2009.9,2009.8,26.303]
[1742745289678,4.97541,2009.9,2009.8,26.42863827]
[1742745310109,8.30895359,2009.9,2009.8,31.09963827]
[1742745310419,9.12435359,2009.9,2009.8,26.42863827]
[1742745312490,7.3649,2009.9,2009.8,26.42863827]
[1742745312696,9.12435359,2009.9,2009.8,26.42863827]
[1742745312914,7.3649,2009.9,2009.8,26.42863827]
[1742745314819,10.3649,2009.9,2009.8,26.42863827]
[1742745318715,4.97541,2009.9,2009.8,26.42863827]
[1742745324410,5.79746,2010.3,2009.8,26.42863827]
[1742745324725,0.8229,2010.5,2010.0,2.93334969]
[1742745325019,4.97475,2010.2,2010.1,4.79536712]
[1742745325525,7.58333297,2010.2,2010.1,4.79536712]
[1742745325726,10.51668266,2010.2,2010.1,4.79536712]